bitfinex/quotes_ETHUSD_20251008
["timestamp","ask_amount","ask_price","bid_price","bid_amount"]
[1759948924461,0.012,4526.9,4526.8,2.292066]
[1759948926029,0.012,4526.9,4526.8,8.552066]
[1759948928185,0.012,4526.9,4526.8,6.26]
[1759948928464,0.012,4526.9,4526.8,8.469066]
[1759948929070,0.012,4526.9,4526.8,8.552066]
[1759948930177,0.012,4526.9,4526.8,8.469066]
[1759948931151,0.012,4526.9,4526.8,6.259]
[1759948931661,0.012,4526.9,4526.3,0.1104]
[1759948931662,0.4428,4526.9,4526.3,0.1104]
[1759948931870,0.45841332,4526.8,4526.4,0.178]
[1759948932036,2.6675153,4526.8,4526.5,0.178]
[1759948932241,0.94726127,4526.8,4526.5,0.178]
[1759948932439,0.012,4526.9,4526.5,0.178]
[1759948932667,0.012,4526.9,4526.6,0.083]
[1759948932979,0.012,4526.9,4526.7,11.41111426]
[1759948933167,0.012,4526.9,4526.8,10.765066]
[1759948933377,0.012,4526.9,4526.8,10.848066]
[1759948933544,0.012,4526.9,4526.8,12.47521361]
[1759948934050,0.012,4526.9,4526.8,15.02881361]
[1759948936476,0.012,4526.9,4526.8,5.83921361]
[1759948936803,0.012,4526.9,4526.8,10.764066]
[1759948936948,0.012,4526.9,4526.8,10.847066]
[1759948940190,0.012,4526.9,4526.8,2.292066]
[1759948940353,0.012,4526.9,4526.8,10.765066]
[1759948940783,0.012,4526.9,4526.8,10.848066]
[1759948941298,0.012,4526.9,4526.8,10.765066]
[1759948941898,0.012,4526.9,4526.8,10.848066]
[1759948942718,0.012,4526.9,4526.8,10.958466]
[1759948943586,0.012,4526.9,4526.8,8.660466]
[1759948943785,0.012,4526.9,4526.8,10.957466]
[1759948943986,0.012,4526.9,4526.8,2.402466]
[1759948944198,0.012,4526.9,4526.8,10.957466]
[1759948944418,0.012,4526.9,4526.8,11.4186283]
[1759948944810,0.012,4526.9,4526.8,2.8636283]
[1759948945026,0.012,4526.9,4526.8,20.6086283]
[1759948945506,0.012,4526.9,4526.8,9.0386283]
[1759948945802,0.012,4526.9,4526.8,10.874466]
[1759948946406,0.012,4526.9,4526.8,10.957466]
[1759948947343,0.012,4526.9,4526.8,8.6654]
[1759948947509,0.012,4526.9,4526.8,2.319466]
[1759948947818,0.012,4526.9,4526.8,4.822]
[1759948952437,0.012,4526.9,4526.8,7.031066]
[1759948952639,0.012,4526.9,4526.8,4.822]
[1759948957576,0.72085028,4526.9,4526.1,2.297]
[1759948957778,0.1104,4526.6,4526.2,6.258]
[1759948957981,2.23683499,4526.5,4526.2,6.258]
[1759948958167,0.1104,4526.3,4526.2,6.258]
[1759948961450,0.1104,4526.3,4524.3,0.001]
[1759948961669,0.1104,4525.6,4525.1,2.21089405]
[1759948961944,0.24513757,4526.9,4525.2,5.90301679]
[1759948961945,2.20926259,4526.4,4525.2,5.90301679]
[1759948962181,0.1104,4525.9,4525.5,2.20969665]
[1759948962386,0.1104,4525.9,4525.6,6.258]
[1759948963397,2.31991998,4525.9,4525.6,6.258]
[1759948963552,2.20968739,4525.6,4525.1,0.001]
[1759948963752,0.1104,4525.3,4525.2,0.122]
[1759948966950,0.1104,4525.3,4525.2,2.33184707]
[1759948967758,0.02761759,4526.1,4525.2,0.21601777]
[1759948968054,0.1104,4525.5,4525.4,2.20974941]
[1759948968449,0.1104,4525.5,4525.3,2.20978524]
[1759948968683,0.1104,4525.5,4525.2,2.34285674]
[1759948968991,0.1104,4525.5,4525.2,2.33183897]
[1759948969365,0.1104,4525.5,4525.2,2.33184294]
[1759948969563,0.1104,4525.5,4525.2,0.122]
[1759948969764,8.56679021,4526.9,4525.3,0.09401655]
[1759948969765,2.23686501,4526.5,4525.3,0.09401655]
[1759948969964,0.1104,4525.9,4525.7,2.20960058]
[1759948970161,0.1104,4525.9,4525.8,2.517]
[1759948970881,0.1104,4525.9,4525.1,2.298]
[1759948970882,0.7788,4525.9,4525.1,2.298]
[1759948971050,2.20964739,4525.7,4525.4,6.199]
[1759948971251,2.20970058,4525.5,4525.4,6.199]
[1759948971475,0.02762064,4525.6,4525.4,6.199]
[1759948971476,0.45992064,4525.6,4525.4,6.199]
[1759948972384,2.66957645,4525.6,4525.4,6.199]
[1759948972557,0.45992064,4525.6,4525.4,6.199]
[1759948972999,0.02762064,4525.6,4525.4,6.199]
[1759948973287,2.20965469,4525.6,4525.4,6.199]
[1759948973458,0.02762125,4525.5,4525.4,6.199]
[1759948974077,0.4504,4525.5,4525.4,6.199]
[1759948974277,0.02762003,4525.7,4525.4,6.199]
[1759948974556,0.4504,4525.6,4525.4,6.199]
[1759948974750,2.66005916,4525.6,4525.4,6.199]
[1759948974958,0.47802125,4525.5,4525.4,6.199]
[1759948975157,0.02762125,4525.5,4525.4,6.199]
[1759948975372,0.02762064,4525.6,4525.4,6.199]
[1759948975753,2.23727423,4525.6,4525.4,6.199]
[1759948976279,0.02762064,4525.6,4525.4,6.199]
[1759948976479,0.02762003,4525.7,4525.4,6.199]
[1759948976963,0.1104,4525.7,4525.5,0.0110141]
[1759948977485,0.1104,4525.7,4525.4,8.40870477]
[1759948977486,0.1104,4525.7,4525.4,6.199]
[1759948977856,0.1104,4525.7,4525.4,8.40874938]
[1759948978295,0.1104,4525.7,4525.4,6.199]
[1759948979000,0.1104,4525.7,4525.4,8.40874623]
[1759948979180,0.1104,4525.7,4525.4,6.199]
[1759948979579,0.5608,4525.7,4525.4,6.199]
[1759948980488,0.5608,4525.7,4525.6,2.20965175]
[1759948980489,0.1104,4525.7,4525.6,2.20965175]
[1759948980876,0.002,4525.9,4525.8,2.20955411]
[1759948981191,0.002,4525.9,4525.8,8.46855411]
[1759948981399,0.002,4525.9,4525.8,8.55155411]
[1759948981690,0.002,4525.9,4525.8,8.66195411]
[1759948981995,0.002,4525.9,4525.8,9.62944925]
[1759948988482,0.002,4525.9,4525.8,9.54644925]
[1759948988677,0.002,4525.9,4525.8,9.62944925]
[1759948990190,0.002,4525.9,4525.8,9.54644925]
[1759948990502,0.002,4525.9,4525.8,9.62944925]
[1759948992403,0.002,4525.9,4525.8,9.32944925]
[1759948992604,0.002,4525.9,4525.8,0.1104]
[1759948992900,0.002,4525.9,4525.8,4.724]
[1759948993303,0.6899,4525.9,4525.1,0.001]
[1759948993507,0.1104,4525.3,4525.2,6.258]
[1759948998403,0.5608,4525.3,4525.2,6.258]
[1759948998607,1.06158375,4525.3,4525.2,6.258]
[1759948999126,0.61118375,4525.3,4525.2,6.258]
[1759948999304,0.1104,4525.3,4525.2,6.258]
[1759949002933,2.77059824,4525.3,4525.2,6.258]
[1759949005415,2.20984707,4525.2,4525.1,0.001]
[1759949005615,2.67987015,4525.2,4525.1,0.001]
[1759949005930,4.59987015,4525.2,4525.1,0.001]
[1759949006134,5.69602951,4525.2,4525.1,0.001]
[1759949011635,6.32962951,4525.2,4525.1,0.001]
[1759949015350,6.53398932,4525.2,4525.1,0.001]
[1759949015916,14.19839262,4525.2,4525.1,0.001]
[1759949017962,14.19839262,4525.2,4524.8,0.001]
[1759949017963,2.20999359,4524.9,4524.8,0.001]
[1759949018115,16.35038642,4524.9,4524.8,0.001]
[1759949018464,16.85365992,4524.9,4524.8,0.001]
[1759949021196,16.85365992,4524.9,4524.1,0.011]
[1759949021197,2.664,4524.8,4524.1,0.011]
[1759949021320,6.67613717,4524.2,4524.1,0.011]
[1759949021519,14.01677768,4524.2,4524.1,1e-08]
[1759949021722,14.45917768,4524.2,4524.1,1e-08]
[1759949021941,14.66366045,4524.2,4524.1,1e-08]
[1759949022147,14.7521741,4524.2,4524.1,1e-08]
[1759949022755,16.6721741,4524.2,4524.1,1e-08]
[1759949022958,17.14332227,4524.2,4524.1,1e-08]
[1759949023123,16.6721741,4524.2,4524.1,1e-08]
[1759949029139,10.4121741,4524.2,4524.1,1e-08]
[1759949029340,15.95105944,4524.2,4524.1,1e-08]
[1759949029547,16.58465944,4524.2,4524.1,1e-08]
[1759949029843,16.38017768,4524.2,4524.1,1e-08]
[1759949031175,10.11917768,4524.2,4524.1,1e-08]
[1759949031381,16.58459935,4524.2,4524.1,1e-08]
[1759949032285,20.50531547,4524.2,4524.1,1e-08]
[1759949032446,17.14422207,4524.2,4524.1,1e-08]
[1759949032646,20.97642372,4524.2,4524.1,1e-08]
[1759949033378,20.97642372,4524.2,4521.0,0.083]
[1759949033379,2.21111749,4522.6,4521.0,0.083]
[1759949033683,6.04351472,4522.2,4521.0,2.29489481]
[1759949033991,11.43151472,4522.2,4521.0,0.083]
[1759949034158,11.89751472,4522.2,4520.8,0.083]
[1759949034358,11.89751472,4522.2,4519.3,0.003]
[1759949034359,9.68620165,4522.2,4519.3,0.003]
[1759949034572,6.04400382,4521.2,4519.9,0.093]
[1759949034758,12.30600382,4521.2,4519.9,0.093]
[1759949035089,12.77200382,4521.2,4519.9,0.093]
[1759949036173,12.77200382,4521.2,4519.9,2.30543441]
[1759949036577,12.77200382,4521.2,4519.8,4.52148087]
[1759949037182,12.77200382,4521.2,4519.8,2.309]
[1759949037955,14.69200382,4521.2,4519.3,0.003]
[1759949038292,15.32560382,4521.2,4519.3,0.003]
[1759949038469,17.12411913,4521.2,4519.3,2.21571863]
[1759949039258,17.12411913,4521.2,4519.3,0.003]
[1759949039454,17.12411913,4521.2,4519.3,2.21569273]
[1759949039661,17.12411913,4521.2,4519.4,2.21267686]
[1759949040491,17.12411913,4521.2,4519.3,0.003]
[1759949040700,20.95632078,4521.2,4521.1,1e-08]
[1759949040899,21.2488993,4521.2,4521.1,1e-08]
[1759949042090,17.41669765,4521.2,4521.1,1e-08]
[1759949043004,11.15469765,4521.2,4521.1,1e-08]
[1759949043180,12.73252281,4521.2,4521.1,1e-08]
[1759949043388,18.99552281,4521.2,4521.1,1e-08]
[1759949043709,19.62912281,4521.2,4521.1,1e-08]
[1759949044391,11.06612281,4521.2,4521.1,1e-08]
[1759949044573,17.33012281,4521.2,4521.1,1e-08]
[1759949045503,11.06612281,4521.2,4521.1,1e-08]
[1759949045738,17.33012281,4521.2,4521.1,1e-08]
[1759949045910,17.33012281,4521.2,4519.3,0.003]
[1759949045911,2.21229149,4520.2,4519.3,0.003]
[1759949046086,12.77859817,4520.2,4519.3,0.003]
[1759949046282,13.21694453,4520.2,4519.3,0.003]
[1759949047520,13.21694453,4520.2,4520.1,0.011]
[1759949048785,15.77054453,4520.2,4520.1,0.011]
[1759949050023,0.6336,4520.0,4519.3,0.003]
[1759949050224,1.92,4520.1,4519.1,0.01]
[1759949050225,10.4328033,4519.4,4519.1,0.01]
[1759949050422,12.4311761,4518.4,4518.3,0.003]
[1759949050624,12.4311761,4518.4,4518.1,0.01]
[1759949050625,1.92,4518.3,4518.1,0.01]
[1759949050810,11.05953665,4518.2,4518.1,0.01]
[1759949050990,2.21367092,4517.4,4516.1,0.01]
[1759949051190,4.04700165,4517.2,4516.2,2.21420258]
[1759949051392,17.81953332,4517.2,4516.1,0.01]
[1759949051731,18.28553332,4517.2,4516.1,0.01]
[1759949051895,2.214228,4516.3,4516.1,0.01]
[1759949052095,8.50892904,4516.2,4516.1,0.01]
[1759949052313,8.94725091,4516.2,4516.1,0.01]
[1759949053132,6.733,4516.2,4516.1,0.01]
[1759949053425,5.27355091,4516.2,4516.1,0.01]
[1759949053637,11.54055091,4516.2,4516.1,0.01]
[1759949053819,1.92,4516.2,4516.1,0.01]
[1759949053994,6.50767813,4516.2,4516.1,0.01]
[1759949054194,8.69425091,4516.2,4516.1,0.01]
[1759949054611,6.48,4516.2,4516.1,0.01]
[1759949054826,4.60025091,4516.2,4516.1,0.01]
[1759949055130,8.654,4516.2,4516.1,0.01]
[1759949055340,11.95507084,4516.2,4516.1,0.01]
[1759949057442,12.58867084,4516.2,4516.1,0.01]
[1759949057800,6.32067084,4516.2,4516.1,0.01]
[1759949058132,14.89267084,4516.2,4516.1,0.01]
[1759949058336,6.32067084,4516.2,4516.1,0.01]
[1759949058512,14.89267084,4516.2,4516.1,0.01]
[1759949059030,3.47281993,4516.2,4516.1,0.01]
[1759949059235,4.60025091,4516.2,4516.1,0.01]
[1759949059458,7.59125091,4516.2,4516.1,0.01]
[1759949059909,2.386,4516.2,4516.1,0.01]
[1759949060109,2.41367813,4516.2,4516.1,0.01]
[1759949060538,8.656,4516.2,4516.1,0.01]
[1759949060781,10.87025091,4516.2,4516.1,0.01]
[1759949060942,8.656,4516.2,4516.1,0.01]
[1759949061347,10.87025091,4516.2,4516.1,0.01]
[1759949061709,8.656,4516.2,4516.1,0.01]
[1759949062060,8.19,4516.2,4516.1,0.01]
[1759949062914,8.656,4516.2,4516.1,0.01]
[1759949063707,8.19,4516.2,4516.1,0.01]
[1759949063942,8.6557,4516.2,4516.1,0.01]
[1759949064444,8.6557,4516.2,4516.1,0.011]
[1759949065416,6.7357,4516.2,4516.1,0.011]
[1759949065734,6.27,4516.2,4516.1,0.011]
[1759949066256,0.4657,4516.2,4516.1,0.011]
[1759949066421,2.70762904,4516.2,4516.1,0.011]
[1759949066763,0.49337813,4516.2,4516.1,0.011]
[1759949067319,8.48423885,4516.3,4516.1,0.011]
[1759949067320,6.27,4516.3,4516.1,0.011]
[1759949067759,0.4657,4516.6,4516.1,0.011]
[1759949067760,6.27,4516.4,4516.1,0.011]
[1759949067922,0.4657,4517.1,4516.1,0.011]
[1759949068117,0.02767323,4517.0,4516.1,0.011]
[1759949068342,0.46690284,4518.1,4516.2,0.01112492]
[1759949068343,0.61,4517.4,4516.2,0.01112492]
[1759949068652,0.02767139,4517.3,4516.6,2.21401893]
[1759949068857,0.02767139,4517.3,4516.6,2.21402506]
[1759949069059,0.02767017,4517.5,4516.7,0.01111978]
[1759949069247,0.02767017,4517.5,4516.8,2.21391739]
[1759949070172,0.4657,4517.9,4516.4,2.21411838]
[1759949070173,2.21351572,4517.7,4516.4,2.21411838]
[1759949070466,2.24126985,4517.6,4516.8,2.2139501]
[1759949070621,0.2148,4518.0,4516.8,2.2139501]
[1759949070622,0.4657,4518.5,4517.0,2.21385875]
[1759949070821,1.92,4518.3,4517.1,0.01111096]
[1759949071051,0.1104,4517.2,4517.1,2.22491681]
[1759949071421,0.1104,4517.2,4517.1,2.2249207]
[1759949071622,0.1104,4517.2,4517.1,2.6804029]
[1759949072121,0.1104,4517.2,4517.1,2.7964029]
[1759949072357,0.1104,4517.2,4517.1,0.46659316]
[1759949072541,0.1104,4517.6,4517.1,0.58259316]
[1759949072744,0.1104,4517.6,4517.5,2.21357803]
[1759949073171,0.1104,4517.6,4517.2,0.116]
[1759949073458,0.1104,4517.6,4517.2,1.1468744]
[1759949073646,0.1104,4517.6,4517.3,2.21367376]
[1759949073829,0.1104,4517.6,4517.2,1.1468744]
[1759949074023,0.1104,4517.6,4517.5,2.21361372]
[1759949074550,0.1104,4517.6,4517.5,2.22472565]
[1759949075120,0.1104,4517.6,4517.5,2.34072565]
[1759949075526,0.1104,4517.6,4517.5,2.76451793]
[1759949075721,0.1104,4518.5,4517.5,0.66130421]
[1759949075939,0.1104,4518.5,4517.6,0.116]
[1759949076133,0.1104,4518.5,4517.7,5.956]
[1759949076362,0.1104,4518.5,4518.3,2.21320213]
[1759949076565,0.1104,4518.5,4518.4,2.2242742]
[1759949076769,0.1104,4518.5,4518.4,2.2131728]
[1759949076939,0.2363,4519.9,4518.6,2.21307194]
[1759949076940,0.1104,4518.7,4518.6,2.21307194]
[1759949077139,0.1104,4518.7,4518.5,2.21311423]
[1759949077347,0.1104,4518.7,4518.6,0.01109895]
[1759949078258,0.1104,4518.7,4517.1,0.4554822]
[1759949078457,0.49336343,4518.6,4517.2,2.302]
[1759949078662,2.21322195,4518.3,4517.4,2.36765738]
[1759949078868,0.02766588,4518.2,4517.4,2.36765738]
[1759949079083,0.02766588,4518.2,4517.2,6.3168]
[1759949079278,0.02766588,4518.2,4517.3,2.21371173]
[1759949079492,0.02766588,4518.2,4517.2,6.5108]
[1759949079652,0.01,4518.9,4518.2,2.21323893]
[1759949079979,0.01,4518.9,4518.0,6.269]
[1759949080150,0.01,4518.9,4518.5,2.21307689]
[1759949080478,0.01,4518.9,4518.4,2.21317243]
[1759949080661,0.01,4518.9,4518.1,2.302]
[1759949080970,0.01,4518.9,4518.3,2.21318886]
[1759949081172,0.01,4518.9,4518.5,2.21307877]
[1759949081472,0.01,4518.9,4518.2,0.9847]
[1759949083381,0.012,4518.9,4518.4,2.21315966]
[1759949083887,0.012,4518.9,4518.5,2.21312209]
[1759949084182,0.012,4518.9,4518.3,0.26738072]
[1759949084349,0.4358,4518.8,4518.1,6.268]
[1759949084552,2.21312666,4518.5,4516.7,0.116]
[1759949084757,2.21328462,4518.2,4517.2,2.21375879]
[1759949085059,0.02766649,4518.1,4517.3,2.21370574]
[1759949085364,0.02766649,4518.1,4517.3,2.21370763]
[1759949085571,0.02766649,4518.1,4516.7,0.116]
[1759949085896,0.02766649,4518.1,4517.6,2.21356366]
[1759949086103,0.4358,4518.0,4516.7,0.34901221]
[1759949086408,0.2242,4517.9,4516.8,4.359]
[1759949086700,0.66,4517.9,4516.8,6.268]
[1759949086897,0.02766833,4517.8,4516.8,8.48195439]
[1759949087251,2.24114698,4517.8,4516.9,2.2138878]
[1759949087468,2.21353987,4517.7,4516.9,2.2138878]
[1759949087667,2.2412445,4517.6,4516.8,6.268]
[1759949087879,0.02766955,4517.6,4516.8,6.268]
[1759949088086,0.02766894,4517.7,4516.9,2.21390776]
[1759949088266,2.24119917,4517.7,4516.9,2.21390776]
[1759949088474,0.1104,4517.4,4516.9,2.21390776]
[1759949088881,0.1104,4517.4,4516.8,6.268]
[1759949089392,0.1104,4517.4,4516.8,8.48192716]
[1759949089691,2.21357126,4517.6,4516.8,8.48192716]
[1759949089692,0.1104,4517.0,4516.8,6.268]
[1759949089888,0.1104,4517.0,4516.9,2.22502557]
[1759949090072,0.02766955,4517.6,4517.0,2.2138401]
[1759949090271,0.1104,4517.3,4516.9,2.32990027]
[1759949090483,0.1104,4517.3,4516.8,6.268]
[1759949090699,2.21365256,4517.5,4516.7,8.48199426]
[1759949090893,0.1104,4517.1,4516.7,8.48199426]
[1759949091101,0.1104,4517.1,4516.7,6.268]
[1759949091287,0.1104,4517.1,4516.9,2.21387542]
[1759949091468,0.1104,4517.1,4517.0,0.01111855]
[1759949091670,0.1104,4517.1,4516.7,6.268]
[1759949091870,0.1104,4517.1,4516.8,6.268]
[1759949092373,0.4358,4517.0,4516.3,2.32459023]
[1759949092704,0.4358,4517.0,4516.4,2.21410906]
[1759949092863,0.1104,4517.1,4516.3,2.32459458]
[1759949093196,0.1104,4517.1,4516.5,2.21406686]
[1759949094503,2.32422072,4517.1,4516.4,8.48213886]
[1759949094679,0.1104,4517.1,4516.5,2.21408941]
[1759949094879,0.1104,4517.1,4516.6,2.21405028]
[1759949095308,0.1104,4517.1,4516.4,6.268]
[1759949095481,0.1104,4517.1,4516.5,2.21409848]
[1759949095797,0.1104,4517.1,4516.6,2.21402847]
[1759949096270,0.1104,4517.1,4516.7,6.269]
[1759949096470,0.5724,4517.1,4516.7,8.48299051]
[1759949096964,0.5724,4517.1,4516.7,6.269]
[1759949097169,2.78625131,4517.1,4516.7,6.269]
[1759949097370,0.462,4517.0,4516.7,6.269]
[1759949097883,0.1104,4517.1,4516.7,6.269]
[1759949099301,0.1104,4517.1,4516.7,8.48299717]
[1759949099635,0.1104,4517.1,4516.7,6.269]
[1759949099921,0.1104,4517.3,4516.9,2.2139061]
[1759949100287,0.1104,4517.3,4516.7,8.48299888]
[1759949100489,0.1104,4517.3,4516.9,2.21388644]
[1759949100735,0.58477061,4519.4,4517.0,0.85940621]
[1759949100891,0.01,4519.9,4517.7,0.6336]
[1759949101090,0.01656876,4521.5,4519.2,2.21274652]
[1759949101332,0.01,4521.9,4518.8,2.302]
[1759949101333,0.6919,4521.8,4519.9,0.01]
[1759949101540,0.6919,4521.8,4520.1,2.5536]
[1759949101685,0.01,4521.9,4520.2,11.513]
[1759949102042,0.002,4522.2,4522.0,0.6336]
[1759949102188,0.01,4523.9,4522.8,0.6336]
[1759949102502,0.01,4523.9,4523.7,2.2105574]
[1759949102688,0.01,4523.9,4523.8,6.4831053]
[1759949102884,0.01,4523.9,4523.8,6.5213]
[1759949103123,0.002,4524.2,4523.8,7.74238198]
[1759949103323,0.002,4525.7,4524.2,2.21033552]
[1759949103621,0.002,4525.7,4524.3,0.20450661]
[1759949103820,2.20973988,4525.5,4524.4,8.77550661]
[1759949104124,0.002,4525.7,4524.5,0.20450661]
[1759949104125,2.2116244,4525.7,4524.5,0.20450661]
[1759949104325,0.002,4525.7,4524.6,0.20450661]
[1759949104497,0.002,4525.7,4524.6,0.26280661]
[1759949104698,0.002,4525.7,4524.6,0.20450661]
[1759949105201,0.002,4525.7,4524.6,0.20396933]
[1759949105397,0.002,4525.7,4524.4,8.571]
[1759949105609,0.002,4525.7,4524.7,2.21009127]
[1759949106023,0.002,4525.7,4524.5,2.7771]
[1759949106024,0.002,4525.7,4524.8,0.0563]
[1759949106222,0.002,4525.7,4524.8,7.027]
[1759949106697,2.2200113,4524.9,4524.1,2.3593]
[1759949107017,2.2200113,4524.9,4524.2,6.269]
[1759949107018,2.21004749,4524.8,4524.2,6.269]
[1759949107200,2.21009778,4524.7,4524.2,6.269]
[1759949107403,0.01,4524.9,4524.2,6.3253]
[1759949107999,0.01,4524.9,4524.4,2.21023782]
[1759949108200,0.01,4524.9,4524.2,7.35850706]
[1759949108400,0.01,4524.9,4524.3,6.268]
[1759949108613,0.01,4524.9,4524.1,0.0583]
[1759949108816,0.01,4524.9,4523.8,0.43400822]
[1759949108994,0.01,4524.9,4522.1,0.01]
[1759949108995,0.47856876,4524.8,4523.3,0.50818502]
[1759949109199,0.47856876,4524.8,4522.7,0.0563]
[1759949109200,0.6336,4524.7,4522.7,2.3]
[1759949109514,0.6336,4524.7,4522.8,0.02211019]
[1759949109515,2.2107261,4523.5,4522.8,0.02211019]
[1759949109718,2.21066448,4523.6,4522.7,2.3]
[1759949109898,2.21018897,4524.5,4522.8,0.02211019]
[1759949110093,2.34358359,4524.6,4522.9,0.0563]
[1759949110393,2.21033368,4524.3,4523.0,4.55202071]
[1759949110593,0.01656876,4524.2,4523.0,2.319]
[1759949110795,0.1104,4524.0,4523.3,0.1104]
[1759949111126,2.2105478,4523.8,4523.3,0.1104]
[1759949111329,0.1104,4524.0,4523.3,0.1104]
[1759949111531,2.2104821,4523.9,4523.3,0.1104]
[1759949111826,2.21054917,4523.8,4523.3,0.1104]
[1759949112197,2.21060389,4523.7,4523.3,0.1104]
[1759949112732,2.21063088,4523.6,4523.0,2.319]
[1759949112931,0.45314493,4523.7,4523.0,2.319]
[1759949112932,2.21077683,4523.3,4523.0,2.319]
[1759949113099,0.1104,4523.4,4523.0,2.319]
[1759949113299,2.32112672,4523.4,4523.0,2.319]
[1759949113716,0.1104,4523.4,4523.0,2.319]
[1759949114219,2.21079036,4523.3,4523.0,2.319]
[1759949114423,2.21079036,4523.3,4522.7,0.1104]
[1759949114646,0.4531827,4523.3,4522.7,0.1104]
[1759949114845,2.21088399,4523.1,4522.7,0.1104]
[1759949115051,2.21080815,4523.3,4522.7,0.1104]
[1759949115247,0.1104,4523.4,4522.7,0.1104]
[1759949115827,0.1104,4523.4,4522.8,0.02211019]
[1759949116047,0.1104,4523.4,4522.9,2.26722919]
[1759949116222,0.1104,4523.4,4523.0,0.07840921]
[1759949116552,0.1104,4523.4,4523.0,0.02210921]
[1759949116721,0.34250786,4523.4,4522.7,0.1104]
[1759949116925,0.1104,4523.4,4522.7,0.1104]
[1759949117140,2.21083751,4523.2,4522.7,0.1104]
[1759949117338,2.32113076,4523.4,4522.7,0.1104]
[1759949117557,2.21077531,4523.3,4522.7,0.1104]
[1759949117854,0.1104,4523.4,4522.7,0.1104]
[1759949118036,0.1104,4523.4,4522.7,2.32146017]
[1759949118237,0.1104,4523.4,4522.8,2.23312101]
[1759949118863,0.1104,4523.4,4522.9,2.21097083]
[1759949119055,0.1104,4523.9,4523.1,2.32123339]
[1759949119228,0.1104,4523.9,4523.2,0.02210824]
[1759949119425,0.1104,4523.9,4523.3,6.264]
[1759949119652,2.21053313,4523.8,4523.3,6.264]
[1759949120057,2.21069337,4523.5,4523.3,6.264]
[1759949120354,0.1104,4523.9,4523.3,6.264]
[1759949120554,0.4624,4523.8,4522.6,0.001]
[1759949120758,2.32108899,4523.5,4522.7,5.4904]
[1759949121159,2.2108315,4523.2,4522.7,5.4904]
[1759949121362,0.1104,4523.5,4522.7,5.4904]
[1759949121750,2.21092265,4523.0,4522.7,5.4904]
[1759949122268,2.21076872,4523.4,4522.7,5.4904]
[1759949122437,0.1104,4523.5,4522.8,0.02211019]
[1759949122768,2.21042071,4524.1,4523.1,2.21083378]
[1759949122971,0.1104,4523.8,4523.2,0.07840824]
[1759949123288,0.1104,4523.8,4523.0,0.1104]
[1759949123639,2.21086408,4523.2,4522.8,0.583]
[1759949124183,0.1104,4523.5,4522.7,6.3724]
[1759949124341,2.21072644,4523.4,4522.7,6.3724]
[1759949124544,0.1104,4523.5,4522.7,6.3724]
[1759949124767,0.39039393,4523.5,4522.7,0.1104]
[1759949125137,4.13077531,4523.3,4522.6,0.001]
[1759949125376,2.2110686,4522.7,4522.6,0.001]
[1759949128384,2.6734686,4522.7,4522.6,0.001]
[1759949128584,4.61003736,4522.7,4522.6,0.001]
[1759949128750,5.27557222,4522.7,4522.6,0.001]
[1759949133195,5.90917222,4522.7,4522.6,0.001]
[1759949133853,8.20917222,4522.7,4522.6,0.001]
[1759949134254,4.81317222,4522.7,4522.6,0.001]
[1759949134490,1.16765626,4524.5,4522.6,0.001]
[1759949134491,2.21090811,4523.1,4522.6,0.001]
[1759949134709,2.21077766,4523.3,4522.6,0.001]
[1759949134862,2.21092874,4523.0,4522.6,0.001]
[1759949135057,0.1104,4523.0,4522.6,0.001]
[1759949135563,0.1104,4523.0,4522.7,3.942]
[1759949135887,0.4624,4524.4,4522.8,0.47271019]
[1759949135888,0.1104,4523.3,4522.8,0.47271019]
[1759949136120,0.1104,4523.3,4522.8,0.3943]
[1759949136315,0.1104,4523.3,4522.6,0.1114]
[1759949136316,0.01656876,4523.4,4522.6,0.001]
[1759949136520,2.2110686,4522.7,4522.6,0.001]
[1759949136685,2.6734686,4522.7,4522.6,0.001]
[1759949137111,2.2110686,4522.7,4522.6,0.001]
[1759949139382,2.6734686,4522.7,4522.6,0.001]
[1759949139588,2.2110686,4522.7,4522.6,0.001]
[1759949140915,4.13067757,4523.5,4522.6,0.001]
[1759949141115,2.21106065,4522.8,4522.6,0.001]
[1759949141517,0.4624,4524.6,4522.7,2.21103136]
[1759949141828,0.4624,4524.6,4522.8,0.02211019]
[1759949141829,0.1104,4523.4,4522.8,0.02211019]
[1759949141981,0.1104,4523.4,4523.1,2.21083648]
[1759949142184,0.1104,4523.9,4523.4,2.21071923]
[1759949142490,0.1104,4523.9,4523.5,0.25101952]
[1759949142695,2.32088228,4523.9,4523.2,0.1104]
[1759949142902,0.1104,4523.9,4523.3,2.21073148]
[1759949143120,0.1104,4523.9,4523.2,0.1104]
[1759949143313,0.1104,4523.9,4523.2,2.32122097]
[1759949143523,2.32088637,4523.9,4523.2,0.1104]
[1759949143736,0.24836876,4523.8,4522.6,0.001]
[1759949143938,0.19836876,4523.8,4522.6,0.001]
[1759949144097,2.21095942,4523.0,4522.6,0.001]
[1759949144297,2.21082419,4523.2,4522.6,0.001]
[1759949144594,0.1818,4523.8,4522.6,0.001]
[1759949144595,0.01656876,4523.1,4522.6,0.001]
[1759949144794,2.2110686,4522.7,4522.6,0.001]
[1759949145941,0.01656876,4522.8,4522.6,0.001]
[1759949146230,0.4462,4523.4,4522.6,0.001]
[1759949146399,0.01656876,4523.3,4522.6,0.001]
[1759949146592,4.14736431,4523.3,4522.6,0.001]
[1759949147326,0.01656876,4523.3,4522.6,0.001]
[1759949147838,2.2110686,4522.7,4522.6,0.001]
[1759949149003,2.6572686,4522.7,4522.6,0.001]